Cogmind - Beta 15 @@@ ROGUE MODE // 2025.07.05 @ 20:40:18 Player: saltine Result: Destroyed by S-27 Virus with Autogun Performance ------------- Evolutions (5) 2500 Regions Visited (18) 3600 Robots Destroyed (177) 885 Value Destroyed (5191) 5191 Prototype IDs (44) 880 Alien Tech Used (0) 0 Bonus (548) 548 TOTAL SCORE: 13604 Bonus ------- High Alert Combat Kills 89 Follower Combat Kills 2343 Network Hubs Disabled 200 Registered with UFD 300 Met Optimus in HQ 500 Built Enhanced Grunts 300 A7 Reached Mainframe 300 Met R17 at Cetus 500 Friendly Fire -3984 Cogmind --------- Core Integrity 0/1000 Matter 174/300 Energy 99/100 System Corruption 5% Temperature Cool (0) Movement Core (50) Location -5/Upper Caves Parts ------- > --- POWER (1) -------- (None) > --- PROPULSION (5) --- (None) > --- UTILITY (7) ------ (None) > --- WEAPON (4) ------- (None) > --- INVENTORY (5) ---- VTOL Module Centrium Medium Armor Plating Hypervelocity Gauss Rifle Hypervelocity Gauss Rifle Helical Railgun Peak State ------------ > --- POWER ------------ Reinforced Deuterium Engine > --- PROPULSION ------- Centrium Heavy Treads Centrium Heavy Treads Enhanced Flexi-carbon Leg > --- UTILITY ---------- Advanced Signal Interpreter Advanced Targeting Computer Centrium Medium Armor Plating Centrium Medium Armor Plating Makeshift Hacking Suite Improved System Restoration Module > --- WEAPON ----------- Advanced KE Penetrator Advanced KE Penetrator Advanced KE Penetrator > --- INVENTORY -------- Light Angular Momentum Engine Cooled VTOL Module Centrium Medium Armor Plating Advanced Hacking Suite Helical Railgun [Rating: 109] Favorites ----------- Power Ion Engine Engine Ion Engine Power Core Light Nuclear Core Reactor Cold Fusion Reactor Propulsion Improved Treads Treads Improved Treads Leg Enhanced Flexi-carbon Leg Wheel Armored Huge Wheel Hover Unit Gravmag System Flight Unit Cooled VTOL Module Utility Hacking Suite Device Improved Heat Sink Storage Huge Storage Unit Processor Advanced Targeting Computer Hackware Hacking Suite Protection Hardened Medium Armor Plating Weapon Improved Light Cannon Energy Cannon Advanced Beam Cannon Ballistic Gun Enhanced Autogun Ballistic Cannon Improved Light Cannon Launcher Mini Grenade Launcher Special Weapon CPS Tube Impact Weapon Shock Maul Special Melee Weapon Advanced Datajack Build | -11 -10 -10 -9 -9 -8 -8 -8 -8 -6 -6 -6 -6 -6 -6 -6 -5 -5 -5 ------- Run | Yrd Mat Min Mat Min Mat Sto Rec Scr Fac Was Fac Ext Cet Arc Hub Fac Upp Upp Slots Evolved 10 | . . . 2 . 2 . . . 4 . . . . . . 2 . . Power . | . . . . . . . . . . . . . . . . . . . Propulsion 3 | . . . 1 . 1 . . . 1 . . . . . . . . . Utility 5 | . . . 1 . 1 . . . 2 . . . . . . 1 . . Weapon 2 | . . . . . . . . . 1 . . . . . . 1 . . Parts Attached 148 | . 18 2 18 5 1 13 . 16 7 2 3 14 11 20 1 17 . . Power 8 | . . . 1 . . 1 . 3 1 . . 1 . . . 1 . . Engine 4 | . . . 1 . . 1 . 1 . . . 1 . . . . . . Core 2 | . . . . . . . . . 1 . . . . . . 1 . . Reactor 2 | . . . . . . . . 2 . . . . . . . . . . Propulsion 50 | . 9 . 6 1 1 4 . 5 1 1 1 3 3 7 1 7 . . Treads 22 | . 5 . 5 1 1 4 . 1 . 1 . 1 3 . . . . . Leg 1 | . . . . . . . . . . . . . . 1 . . . . Wheel 8 | . 4 . . . . . . 2 . . . 2 . . . . . . Hover 5 | . . . . . . . . . . . . . . 5 . . . . Flight 14 | . . . 1 . . . . 2 1 . 1 . . 1 1 7 . . Utility 53 | . 5 2 5 1 . 3 . 5 4 1 2 5 5 11 . 4 . . Device 16 | . . 1 3 . . 1 . . 1 1 1 2 . 4 . 2 . . Storage 6 | . 4 . . . . . . 2 . . . . . . . . . . Processor 6 | . . . . . . . . . 2 . 1 2 1 . . . . . Hackware 13 | . . . . . . 1 . 2 1 . . . . 7 . 2 . . Protection 12 | . 1 1 2 1 . 1 . 1 . . . 1 4 . . . . . Artifact . | . . . . . . . . . . . . . . . . . . . Weapon 37 | . 4 . 6 3 . 5 . 3 1 . . 5 3 2 . 5 . . Energy Gun . | . . . . . . . . . . . . . . . . . . . Energy Cannon 3 | . . . 2 . . . . . . . . 1 . . . . . . Ballistic Gun 18 | . 1 . . . . 2 . 2 1 . . 3 3 1 . 5 . . Ballistic Cannon 8 | . 2 . 2 1 . 2 . . . . . 1 . . . . . . Launcher 4 | . 1 . 2 1 . . . . . . . . . . . . . . Special Weapon 2 | . . . . 1 . . . 1 . . . . . . . . . . Impact Weapon 1 | . . . . . . 1 . . . . . . . . . . . . Slashing Weapon . | . . . . . . . . . . . . . . . . . . . Piercing Weapon . | . . . . . . . . . . . . . . . . . . . Special Melee Weapon 1 | . . . . . . . . . . . . . . 1 . . . . Unidentified Prototypes 14 | . . . 2 . . 3 . 2 1 1 . . 3 1 . 1 . . Corrupted Parts 6 | . . . . 1 . . . . . . . 1 4 . . . . . System Corruption 30 | . . . . 3 . . . . . . . 2 25 . . . . . Parts Lost 52 | . 1 . 1 2 . 5 . 2 8 . 3 2 4 . 1 18 3 2 Power 2 | . . . . . . . . . . . . . . . . 2 . . Propulsion 22 | . 1 . . . . 3 . 1 4 . 2 . 1 . . 8 2 . Utility 19 | . . . 1 1 . 1 . 1 2 . 1 1 2 . 1 5 1 2 Weapon 9 | . . . . 1 . 1 . . 2 . . 1 1 . . 3 . . Highest Loss Streak 10 | . 1 . 1 2 . 2 . 1 4 . 3 1 2 . 1 10 2 2 To Critical Strikes 2 | . 1 . . . . . . . . . . . 1 . . . . . Average Backups 17 | 6 15 23 24 24 25 24 25 17 8 5 5 4 4 4 5 4 5 5 Power 1 | 1 1 2 1 1 2 2 1 1 1 2 1 1 1 1 1 . . . Propulsion 4 | 4 4 8 7 9 10 6 6 3 . . . 1 1 . 1 . 1 1 Utility 5 | . 2 5 6 6 6 7 8 6 2 1 1 1 . 1 1 1 1 1 Weapon 6 | 1 6 8 9 7 7 8 9 6 3 2 2 1 1 1 1 2 3 3 Tool/Special . | . . . . . . . . . . . . . . . . . . . Unused Backups 42 | . 10 3 10 . . 4 . 11 1 . 1 . . . . 1 . 1 Power 5 | . 1 . 3 . . 1 . . . . . . . . . . . . Propulsion 14 | . 7 . 4 . . . . 1 . . . . . . . 1 . 1 Utility 13 | . 1 . 1 . . 3 . 7 . . 1 . . . . . . . Weapon 9 | . 1 3 2 . . . . 3 . . . . . . . . . . Tool/Special 1 | . . . . . . . . . 1 . . . . . . . . . Average Slot Usage (%) 88 | . 98 100 91 99 81 99 100 90 65 45 51 53 79 73 79 63 26 8 Engine 8 | . 14 14 11 11 9 9 9 6 . . . 2 6 4 . . . . Treads 21 | . 22 . 32 33 27 35 36 17 . 4 5 2 11 9 . . . . Wheel 3 | . 3 28 . . . . . 7 4 . . 3 1 . . . . . Flight 1 | . . . . . . . . 2 6 . 3 . . 1 11 17 8 . Device 5 | . . 1 9 11 9 8 9 4 4 . . 2 . 5 . 3 . . Storage 8 | . 14 14 11 11 9 9 9 9 2 . . . . . . . . . Processor 1 | . . . . . . . . . 4 13 15 14 13 9 . . . . Hackware 8 | . . . . . . 8 9 13 19 20 20 13 8 14 40 27 17 8 Protection 7 | . 12 12 4 10 9 9 9 8 1 . . 1 15 2 . . . . Energy Cannon 3 | . . . 10 17 18 2 . . . . . 2 2 . . . . . Ballistic Gun 6 | . 21 . . . . . . 9 6 . . 4 15 14 5 8 . . Ballistic Cannon 8 | . 6 25 11 . . 12 18 8 . . . 2 1 . . . . . Peak Build Rating 109 | 6 14 16 33 29 31 39 35 44 60 47 48 55 107 109 62 72 25 13 Average Rating 33 | 6 9 15 28 25 29 34 35 35 40 38 41 32 94 82 61 51 22 10 On Entrance 34 | 6 6 14 16 24 29 31 39 35 43 29 39 25 54 105 61 57 25 13 Naked Turns 28 | . . . . . . . . . . . . . . . . . . 28 Heaviest Build 107 | 13 96 96 107 106 102 107 106 106 45 4 3 42 54 54 5 24 . . Greatest Support 160 | 20 46 24 69 74 97 97 92 92 38 3 3 38 160 160 11 27 9 3 Greatest Overweight (x) 17 | . 3 3 1 1 1 1 1 17 4 1 . 4 15 . . 1 . . Average Overweight (x) . | . 1 3 1 1 1 1 1 . . . . . . . . . . . Largest Inventory Capacity 25 | 8 25 25 25 25 25 25 25 25 15 5 5 5 5 5 5 5 5 5 Average Capacity 19 | 8 20 25 25 25 25 25 25 19 9 5 5 5 5 5 5 5 5 5 Most Carried 25 | 6 23 25 25 25 25 25 25 25 15 5 5 5 5 5 5 5 5 5 Average Carried 18 | 6 15 24 24 24 24 24 24 17 8 5 4 4 4 4 5 4 5 5 Final Capacity 25 | 8 25 25 25 25 25 25 25 15 5 5 5 5 5 5 5 5 5 5 Final Carried 25 | 6 23 24 25 25 23 25 25 15 4 5 5 5 4 5 5 5 5 5 Class Distribution -------------------- 45% | Mutant 35% | Commander-Mutant 6% | Hacker-Mutant 5% | Scavenger-Tank 3% | Scavenger-Gunner Dominant Class ---------------- Mutant | -10/Materials Mutant | -10/Mines Mutant | -9/Materials Mutant | -9/Mines Mutant | -8/Materials Commander-Mutant | -8/Storage Commander-Mutant | -8/Recycling Commander-Mutant | -8/Scraptown Hacker-Mutant | -6/Factory Hacker-Mutant | -6/Waste Hacker-Mutant | -6/Factory Hacker-Mutant | -6/Extension Scavenger-Tank | -6/Cetus Scavenger-Tank | -6/Archives Wizard-Mutant | -6/Hub_04(d) Hacker-Mutant | -5/Factory Hacker-Mutant | -5/Upper Caves Hacker-Mutant | -5/Upper Caves Resources | -11 -10 -10 -9 -9 -8 -8 -8 -8 -6 -6 -6 -6 -6 -6 -6 -5 -5 -5 ----------- Run | Yrd Mat Min Mat Min Mat Sto Rec Scr Fac Was Fac Ext Cet Arc Hub Fac Upp Upp Matter Collected 5636 | 200 533 305 842 342 . 815 10 495 112 . 122 402 312 514 72 499 . 61 Remotely . | . . . . . . . . . . . . . . . . . . . Salvage Created 5618 | . 454 164 1042 340 . 1229 . 150 163 . 122 377 367 328 . 882 . . Parts 351 | . 35 13 90 17 . 66 . 21 14 . . 14 7 27 . 47 . . Haulers Intercepted 12 | . 2 . 6 . . 4 . . . . . . . . . . . . Recyclers Shooed 5 | . 1 . . 1 . 2 . . . . . . . . . 1 . . Parts Field Recycled . | . . . . . . . . . . . . . . . . . . . Retrieved Matter . | . . . . . . . . . . . . . . . . . . . Parts Self-Destructed . | . . . . . . . . . . . . . . . . . . . Prevented . | . . . . . . . . . . . . . . . . . . . Kills | -11 -10 -10 -9 -9 -8 -8 -8 -8 -6 -6 -6 -6 -6 -6 -6 -5 -5 -5 ------- Run | Yrd Mat Min Mat Min Mat Sto Rec Scr Fac Was Fac Ext Cet Arc Hub Fac Upp Upp Combat Hostiles Destroyed 141 | . 15 10 31 23 . 28 . 2 5 . . 6 3 . . 18 . . Melee 1 | . . . . . . 1 . . . . . . . . . . . . Guns 34 | . 11 . . . . . . 2 3 . . 3 1 . . 14 . . Cannons 61 | . 2 4 20 5 . 27 . . . . . 1 2 . . . . . AOE 41 | . 2 6 11 16 . . . . 2 . . . . . . 4 . . Classes Destroyed 17 | . 4 1 4 3 . 1 . 1 1 . . . 1 . . 1 . . Worker 8 | . . . 4 . . 2 . . 2 . . . . . . . . . Builder 9 | . 1 . 5 . . 3 . . . . . . . . . . . . Tunneler 5 | . . 1 2 2 . . . . . . . . . . . . . . Hauler 12 | . 2 . 6 . . 4 . . . . . . . . . . . . Recycler 4 | . . . . 1 . 1 . . . . 1 . . . . 1 . . Mechanic 1 | . . . . . . 1 . . . . . . . . . . . . Operator 11 | . . . 2 . . . . . . . . . . 9 . . . . Swarmer 48 | . 9 6 12 . . 5 . . 3 . . 2 . . . 11 . . Grunt 35 | . 6 4 8 2 . 12 . . . . . . . . . 3 . . Duelist 1 | . . . 1 . . . . . . . . . . . . . . . Sentry 28 | . . . 10 . . 11 . . . . . 4 . . . 3 . . Demolisher 2 | . . . . 2 . . . . . . . . . . . . . . Hunter 2 | . . . . . . . . . 2 . . . . . . . . . Programmer 1 | . . . . . . . . . . . . . . . . 1 . . Cetus Guard 3 | . . . . . . . . . . . . . 3 . . . . . Scrapper 1 | . . . . . . . . 1 . . . . . . . . . . Assembled 19 | . . . . 19 . . . . . . . . . . . . . . Thug 1 | . . . . . . . . . . . . 1 . . . . . . Savage 1 | . . . . . . . . . . . . . 1 . . . . . Butcher 1 | . . . . . . . . . . . . 1 . . . . . . Best Kill Streak 9 | . 4 3 6 9 . 5 . 1 4 . 1 2 2 2 . 7 . . Combat Bots Only 9 | . 3 3 5 9 . 3 . 1 3 . . 2 2 . . 7 . . Max Kills in Single Turn 4 | . 2 2 3 2 . 2 . 1 2 . 1 1 2 2 . 4 . . Gunslinging 1 | . . . . . . . . . . . . . . . . 1 . . Exploded 4 | . 2 2 3 2 . . . . 1 . . . . . . 4 . . Melee 1 | . . . . . . 1 . . . . . . . . . . . . Uniques/NPCs Destroyed 3 | . . . . . . . . 1 . . . . 2 . . . . . Optimus (-8/Scraptown) Revision 17 (-6/Cetus) A7 (-6/Cetus) Combat | -11 -10 -10 -9 -9 -8 -8 -8 -8 -6 -6 -6 -6 -6 -6 -6 -5 -5 -5 -------- Run | Yrd Mat Min Mat Min Mat Sto Rec Scr Fac Was Fac Ext Cet Arc Hub Fac Upp Upp Hostile Shots Fired 970 | . 66 23 100 23 . 160 . 72 57 . 63 85 37 9 4 207 16 48 Missed 347 | . 12 7 32 9 . 43 . 15 17 . 26 35 12 3 2 105 8 21 Hits 623 | . 54 16 68 14 . 117 . 57 40 . 37 50 25 6 2 102 8 27 Melee 5 | . . . . 5 . . . . . . . . . . . . . . Projectile 618 | . 54 16 68 9 . 117 . 57 40 . 37 50 25 6 2 102 8 27 AOE 2 | . . . . 2 . . . . . . . . . . . . . . Critical Strikes 27 | . 1 . 2 . . 10 . 3 . . 1 . 6 . 1 2 . 1 Damage Taken 10166 | . 545 230 820 580 . 1668 . 1191 709 . 603 428 719 172 61 1902 113 425 Core 2146 | . 71 51 45 29 . 124 . 239 269 . 108 108 54 . 34 554 64 396 Absorbed by Shields 231 | . . . . . . . . 23 31 . . 73 104 . . . . . Regen/Repaired (Parts) 660 | . 133 . 88 . . 358 . . . . . . . . . 81 . . Core Remaining (%) 59 | 100 . 51 . 81 . . . 34 . . . . . . 32 . . . Volleys Fired 438 | . 54 17 81 33 2 92 . 38 16 . . 22 37 17 . 29 . . Largest 4 | . 2 2 2 2 2 2 . 2 2 . . 3 3 3 . 4 . . Hottest 162 | . 66 66 136 136 136 136 . 50 50 . . 162 160 105 . 137 . . Shots Fired 830 | . 105 26 151 41 4 168 . 76 24 . . 38 65 50 . 82 . . Gun 395 | . 92 . . . . 5 . 75 20 . . 26 45 50 . 82 . . Cannon 391 | . 12 20 138 22 4 163 . . . . . 12 20 . . . . . Launcher 43 | . 1 6 13 19 . . . . 4 . . . . . . . . . Special 1 | . . . . . . . . 1 . . . . . . . . . . Kinetic 658 | . 104 20 92 2 . 136 . 75 20 . . 32 45 50 . 82 . . Thermal 128 | . . . 46 20 4 32 . . . . . 6 20 . . . . . Explosive 43 | . 1 6 13 19 . . . . 4 . . . . . . . . . Electromagnetic . | . . . . . . . . . . . . . . . . . . . Robot Hit Streak 24 | . 14 3 19 5 . 16 . 7 6 . . 9 21 24 . 9 . . Robot Miss Streak 5 | . 5 3 4 2 4 4 . 4 2 . . 4 3 4 . 4 . . Penetration Max 3 | . . . . 1 . 2 . . . . . 1 1 1 . 3 . . Secondary Targets 6 | . . . . . . . . 1 . . . . 1 . . 4 . . Max Gunslinging Chain 1 | . . . . . . . . 1 . . . . 1 . . 1 . . Shots Hit Robots 486 | . 66 8 82 19 . 110 . 42 12 . 1 31 49 27 . 39 . . Core Hits 290 | . 26 13 54 37 . 51 . 8 13 . . 17 20 16 . 35 . . Critical Kills 26 | . 1 . . 3 . 3 . . . . . . 2 5 . 12 . . Critical Parts Destroyed 18 | . . . . . . . . . . . 1 1 6 2 . 8 . . Critical Strikes 53 | . 1 1 5 3 . 5 . . . . 1 2 8 7 . 20 . . Meltdown 2 | . . . . 2 . . . . . . . . . . . . . . Destroy 42 | . 1 . . 1 . 4 . . . . . 1 8 7 . 20 . . Blast 7 | . . 1 5 . . 1 . . . . . . . . . . . . Smash 2 | . . . . . . . . . . . 1 1 . . . . . . Melee Attacks 56 | . . . . . . 4 . . 5 . 2 43 . . . 2 . . Impact 54 | . . . . . . 4 . . 5 . 2 43 . . . . . . Slashing . | . . . . . . . . . . . . . . . . . . . Piercing . | . . . . . . . . . . . . . . . . . . . Sneak Attacks 7 | . . . . . . 1 . . . . 1 3 . . . 2 . . Combat Hostiles . | . . . . . . . . . . . . . . . . . . . Follow-up Attacks . | . . . . . . . . . . . . . . . . . . . Damage Inflicted 14866 | . 882 534 2875 1384 . 2673 6 730 588 . 165 1219 1578 879 . 1353 . . Guns 4713 | . 639 . . . . 95 . 727 191 . . 485 1127 879 . 570 . . Cannons 5608 | . 154 170 1794 304 . 2463 . . . . . 276 447 . . . . . Explosions 3590 | . 81 364 899 1066 . . . . 397 . . . . . . 783 . . Melee 684 | . . . . . . 74 . . . . 158 452 . . . . . . Ramming 271 | . 8 . 182 14 . 41 6 3 . . 7 6 4 . . . . . Kinetic 8349 | . 793 170 1144 56 . 2093 . 727 191 . . 599 1127 879 . 570 . . Thermal 2755 | . . . 650 248 . 465 . . . . . 162 447 . . 783 . . Explosive 2807 | . 81 364 899 1066 . . . . 397 . . . . . . . . . Electromagnetic . | . . . . . . . . . . . . . . . . . . . Impact 684 | . . . . . . 74 . . . . 158 452 . . . . . . Slashing . | . . . . . . . . . . . . . . . . . . . Piercing . | . . . . . . . . . . . . . . . . . . . Highest Corruption 27 | . . . 4 8 . . . . . 6 7 9 27 27 2 5 5 5 Average Corruption 6 | . . . 2 4 . . . . . 6 6 6 23 9 2 3 5 5 Corruption Purged 32 | . . . . . . . . . . . . 7 . 25 . . . . Corruption Blocked . | . . . . . . . . . . . . . . . . . . . Effects 194 | . . . 51 30 . . . . . 2 2 41 29 20 3 10 2 4 Message Errors 43 | . . . 12 7 . . . . . . . 9 6 3 . 2 1 3 Matter Fused 51 | . . . 9 8 . . . . . . . 11 8 11 2 2 . . Heat Flow Errors 20 | . . . 6 5 . . . . . . . 7 2 . . . . . Energy Discharges 29 | . . . 10 5 . . . . . . . 5 3 2 1 2 1 . Parts Rejected 4 | . . . 2 . . . . . . . . 1 . 1 . . . . Parts Fused 2 | . . . 1 . . . . . . . . . 1 . . . . . Data Loss (minor) 21 | . . . 6 3 . . . . . 2 2 4 2 1 . . . 1 Data Loss (major) 8 | . . . 1 1 . . . . . . . 3 2 1 . . . . Misfires 4 | . . . 3 . . . . . . . . . 1 . . . . . Alerts 8 | . . . 1 1 . . . . . . . 1 3 . . 2 . . Weapon Failures 4 | . . . . . . . . . . . . . 1 1 . 2 . . Overload Shots . | . . . . . . . . . . . . . . . . . . . Overflow Damage 558 | . 26 12 83 9 . 54 . . . . 158 117 . . . 99 . . Projectiles 28 | . . . 12 . . 10 . . . . . 6 . . . . . . Explosions 217 | . 26 12 71 9 . . . . . . . . . . . 99 . . Melee 313 | . . . . . . 44 . . . . 158 111 . . . . . . Knockbacks 42 | . 4 2 10 . . 20 . . . . 1 5 . . . . . . Impact 5 | . . . 2 . . 1 . . . . 1 1 . . . . . . Kinetic 34 | . 4 2 8 . . 17 . . . . . 3 . . . . . . Secondary 3 | . . . . . . 2 . . . . . 1 . . . . . . Self-Inflicted Damage 353 | . . 68 11 216 . . . 1 51 . 3 3 . . . . . . Shots 11 | . . 2 1 6 . . . . 2 . . . . . . . . . Rammed 27 | . 4 . 11 1 . 5 1 1 . . 2 1 1 . . . . . Targets Rammed 38 | . 4 . 18 2 . 8 1 1 . . 2 1 1 . . . . . Kicked . | . . . . . . . . . . . . . . . . . . . Crushed 11 | . . . 7 1 . 3 . . . . . . . . . . . . Highest Temperature 403 | . 60 84 403 241 . 300 . 44 . . . 213 242 85 . 72 . . Average Temperature 72 | . 10 35 80 75 . 103 . 17 . . . 81 118 24 . 28 . . Received Heat Transfer 2095 | . 159 42 195 18 . 810 . 307 75 . 156 108 45 9 . 162 . 9 Effects 6 | . . . . 2 . 4 . . . . . . . . . . . . Interference 6 | . . . . 2 . 4 . . . . . . . . . . . . Siege Activations . | . . . . . . . . . . . . . . . . . . . Martial Activations . | . . . . . . . . . . . . . . . . . . . Shielding Activations . | . . . . . . . . . . . . . . . . . . . Robots Disrupted . | . . . . . . . . . . . . . . . . . . . Combat Hostiles . | . . . . . . . . . . . . . . . . . . . Robots Corrupted 5 | . . . . . . 1 . . . . 1 3 . . . . . . Combat Hostiles 2 | . . . . . . . . . . . . 2 . . . . . . Parts Fried 9 | . . . . . . 5 . . . . 3 1 . . . . . . Impact Corruptions 9 | . . . . . . 2 . . . . 3 4 . . . . . . Robots Melted 2 | . . . . 2 . . . . . . . . . . . . . . Combat Hostiles 2 | . . . . 2 . . . . . . . . . . . . . . Parts Melted 8 | . . . . 2 . 1 . . . . . . 5 . . . . . Heat Transferred 3768 | . . . 1110 444 . 814 . . . . . 250 700 . . 450 . . Parts Sabotaged . | . . . . . . . . . . . . . . . . . . . Parts Stolen . | . . . . . . . . . . . . . . . . . . . Parts Stripped . | . . . . . . . . . . . . . . . . . . . Power Chain Reactions . | . . . . . . . . . . . . . . . . . . . Alert | -11 -10 -10 -9 -9 -8 -8 -8 -8 -6 -6 -6 -6 -6 -6 -6 -5 -5 -5 ------- Run | Yrd Mat Min Mat Min Mat Sto Rec Scr Fac Was Fac Ext Cet Arc Hub Fac Upp Upp Maximum Alert Level 3 | . . . 1 . . 1 . . . . . 2 1 1 1 3 . . Low Security (%) 71 | 100 100 100 60 100 100 43 100 . 100 100 100 89 33 60 65 20 . . Level 1 27 | . . . 39 . . 56 . . . . . 9 66 39 35 48 . . Level 2 . | . . . . . . . . . . . . 1 . . . 19 . . Level 3 . | . . . . . . . . . . . . . . . . 12 . . Level 4 . | . . . . . . . . . . . . . . . . . . . Level 5 . | . . . . . . . . . . . . . . . . . . . High Security . | . . . . . . . . . . . . . . . . . . . Max Security . | . . . . . . . . . . . . . . . . . . . Peak Influence 815 | . 152 152 335 148 . 347 174 . 123 25 50 406 318 283 339 815 . . Initial 222 | . . 13 52 108 . . 111 . . 25 . 24 222 57 18 127 . . Average 126 | . 25 23 164 22 . 205 55 . 49 9 4 78 223 172 145 358 . . Influence Increases 7099 | . 510 290 1108 202 . 1053 156 . 203 . 80 1115 319 323 412 1328 . . Destroy 0b10 Robot/C 3220 | . 300 200 620 80 . 580 40 . 100 . . 580 160 80 120 360 . . Destroy 0b10 Robot/NC 305 | . 15 5 95 15 . 65 . . 10 . 5 25 10 45 10 5 . . Destroy Leader 654 | . 64 40 182 20 . 182 . . 20 . . 54 . . 32 60 . . Allied During Kill 807 | . . . . . . 65 26 . . . . 303 129 125 159 . . . Successful Hack 248 | . 4 . 47 . . 26 . . 1 . . 33 7 . 18 112 . . Select Force Hacks 230 | . 60 . . . . . 90 . . . . . . . 50 30 . . Disable Machine 330 | . . . 15 15 . 75 . . 15 . 15 75 . 60 . 60 . . Anti-Garrison Action 150 | . . . . . . . . . . . . . . . . 150 . . Destroy Structure 360 | . 7 45 89 72 . 15 . . 27 . . 15 13 13 8 56 . . Partial Spotted 75 | . . . . . . 30 . . . . . . . . 15 30 . . Lose Combat Pursuer 720 | . 60 . 60 . . 15 . . 30 . 60 30 . . . 465 . . Influence Decreases 6818 | . 475 191 964 480 . 767 442 . 130 73 30 767 574 412 206 781 360 166 Entered New Map 1340 | . . 22 82 170 . . 175 . . 48 . 26 176 86 36 133 300 86 Time Decay 4196 | . 465 169 722 302 . 594 247 . 80 25 15 445 318 326 80 318 30 60 Lost Part 434 | . 10 . 10 8 . 50 . . 50 . 15 11 40 . 10 180 30 20 Lost Ally 329 | . . . . . . . 20 . . . . 189 40 . 80 . . . Purge Threat 519 | . . . 150 . . 123 . . . . . 96 . . . 150 . . Squads Dispatched 28 | . 3 1 2 . 1 6 . . 1 . 2 2 . . 3 7 . . Investigation 8 | . 2 . . . . 1 . . . . 1 . . . 2 2 . . Extermination 2 | . . . . . . . . . . . . . . . . 2 . . Reinforcement 10 | . 1 . 2 . 1 1 . . 1 . 1 2 . . 1 . . . Assault 4 | . . 1 . . . . . . . . . . . . . 3 . . Garrison 4 | . . . . . . 4 . . . . . . . . . . . . Intercept . | . . . . . . . . . . . . . . . . . . . Searches Triggered . | . . . . . . . . . . . . . . . . . . . Construction Impeded 2 | . . . . . . . . . . . . 2 . . . . . . Haulers Reinforced . | . . . . . . . . . . . . . . . . . . . Active Scanning Responses . | . . . . . . . . . . . . . . . . . . . Cargo Convoy Interrupts . | . . . . . . . . . . . . . . . . . . . Stealth | -11 -10 -10 -9 -9 -8 -8 -8 -8 -6 -6 -6 -6 -6 -6 -6 -5 -5 -5 --------- Run | Yrd Mat Min Mat Min Mat Sto Rec Scr Fac Was Fac Ext Cet Arc Hub Fac Upp Upp Distress Signals 23 | . 1 . 5 . . 6 . . . . . 5 3 . . 3 . . Communications Jammed . | . . . . . . . . . . . . . . . . . . . Distress Signals . | . . . . . . . . . . . . . . . . . . . Times Spotted 345 | . 33 13 54 22 1 36 . 13 12 6 10 30 10 10 18 64 6 7 Peak Tracking Total 16 | . 5 3 6 5 2 5 . 7 6 6 8 4 5 1 9 16 4 8 Tactical Retreats 26 | . 3 . 3 2 . 1 . . 2 . 2 1 . . . 11 1 . Traps | -11 -10 -10 -9 -9 -8 -8 -8 -8 -6 -6 -6 -6 -6 -6 -6 -5 -5 -5 ------- Run | Yrd Mat Min Mat Min Mat Sto Rec Scr Fac Was Fac Ext Cet Arc Hub Fac Upp Upp Traps Triggered 17 | . 1 . 2 . . 1 . . 2 . . 2 . . 2 7 . . Indirectly . | . . . . . . . . . . . . . . . . . . . Trap Hack Attempts . | . . . . . . . . . . . . . . . . . . . Triggered . | . . . . . . . . . . . . . . . . . . . Disarmed . | . . . . . . . . . . . . . . . . . . . Reprogrammed . | . . . . . . . . . . . . . . . . . . . Reused . | . . . . . . . . . . . . . . . . . . . Traps Extracted . | . . . . . . . . . . . . . . . . . . . Installed . | . . . . . . . . . . . . . . . . . . . Triggered . | . . . . . . . . . . . . . . . . . . . Most Traps Carried 1 | . . . . . . . . 1 1 . . . . . . . . . Machines | -11 -10 -10 -9 -9 -8 -8 -8 -8 -6 -6 -6 -6 -6 -6 -6 -5 -5 -5 ---------- Run | Yrd Mat Min Mat Min Mat Sto Rec Scr Fac Was Fac Ext Cet Arc Hub Fac Upp Upp Machines Disabled 25 | . . . 1 1 . 5 . . 1 . 1 7 . 4 . 5 . . Max in Single Turn 4 | . . . 1 1 . 1 . . 1 . 1 1 . 2 . 4 . . Garrison Access 5 | . . . . . . 1 . . . . 1 . . . . 3 . . Network Hub 1 | . . . . . . . . . . . . . . . 1 . . . Machines Repaired . | . . . . . . . . . . . . . . . . . . . Machines Dismantled . | . . . . . . . . . . . . . . . . . . . Machines Sabotaged 1 | . . . . . . . . . . . . . . . 1 . . . Overloaded Fab Kills . | . . . . . . . . . . . . . . . . . . . Hacking | -11 -10 -10 -9 -9 -8 -8 -8 -8 -6 -6 -6 -6 -6 -6 -6 -5 -5 -5 --------- Run | Yrd Mat Min Mat Min Mat Sto Rec Scr Fac Was Fac Ext Cet Arc Hub Fac Upp Upp Machines Accessed 87 | . 10 1 14 1 . 13 7 1 1 . 3 16 1 . 4 15 . . Terminals 56 | . 7 . 10 . . 8 3 . 1 . . 15 1 . 4 7 . . Fabricators 1 | . . . . . . . . . . . 1 . . . . . . . Repair Stations 7 | . 1 . 2 . . 2 . . . . . 1 . . . 1 . . Recycling Units 12 | . 2 . . . . 2 4 . . . 1 . . . . 3 . . Scanalyzers 4 | . . . 2 . . . . . . . . . . . . 2 . . Garrison Access 4 | . . . . . . 1 . . . . 1 . . . . 2 . . Total Hacks 243 | . 29 1 56 1 . 35 12 1 7 . 6 39 1 . 8 47 . . Successful 141 | . 15 1 31 1 . 18 7 1 5 . 5 23 1 . 4 29 . . Failed 100 | . 14 . 24 . . 17 5 . 2 . 1 15 . . 4 18 . . Catastrophic 16 | . 2 . 3 . . 2 1 . . . . 2 . . 2 4 . . Database Lockouts 2 | . . . 1 . . . . . . . . 1 . . . . . . Manual 97 | . 13 . 26 . . 5 9 . 6 . 1 17 1 . 7 12 . . Terminals 171 | . 19 . 45 . . 20 6 . 7 . . 37 1 . 8 28 . . Fabricators 3 | . . . . . . . . . . . 3 . . . . . . . Repair Stations 21 | . 5 . 5 . . 8 . . . . . 2 . . . 1 . . Recycling Units 26 | . 5 . . . . 5 6 . . . 2 . . . . 8 . . Scanalyzers 12 | . . . 6 . . . . . . . . . . . . 6 . . Garrison Access 7 | . . . . . . 2 . . . . 1 . . . . 4 . . Terminal Hacks 72 | . 3 1 17 1 . 7 . 1 5 . . 19 1 . 3 14 . . Part Schematic 8 | . . . . . . . . . 1 . . 3 . . 1 3 . . Robot Analysis 3 | . 1 . 2 . . . . . . . . . . . . . . . Prototype ID Bank 10 | . 1 . 3 . . 1 . . . . . 2 . . 1 2 . . Open Door 11 | . . 1 . 1 . 4 . . . . . 4 1 . . . . . Branch Access Points 2 | . . . . . . . . . 1 . . . . . . 1 . . Emergency Access Points 3 | . . . 2 . . . . . . . . . . . . 1 . . Machine Index 1 | . . . . . . . . . . . . . . . . 1 . . Terminal Index 2 | . . . 1 . . . . . 1 . . . . . . . . . Fabricator Index 1 | . . . . . . . . . 1 . . . . . . . . . Unreport Threat 4 | . . . 1 . . 1 . . . . . 1 . . . 1 . . Locate Traps 8 | . 1 . 1 . . . . . . . . 3 . . . 3 . . Dispatch Records 1 | . . . 1 . . . . . . . . . . . . . . . Security Status 1 | . . . 1 . . . . . . . . . . . . . . . Patrol Status 1 | . . . 1 . . . . . . . . . . . . . . . Recall Investigation 1 | . . . 1 . . . . . . . . . . . . . . . Recall Reinforcements 1 | . . . . . . . . . . . . 1 . . . . . . Hauler Manifests 5 | . . . 1 . . 1 . . . . . 2 . . . 1 . . Registered Components 2 | . . . 1 . . . . . . . . 1 . . . . . . Registered Prototypes 3 | . . . 1 . . . . . . . . 1 . . . 1 . . Zone Layout 3 | . . . . . . . . . 1 . . 1 . . 1 . . . Proto ID Catalog 1 | . . . . . . . . 1 . . . . . . . . . . Fabricator Hacks 2 | . . . . . . . . . . . 2 . . . . . . . Load Schematic 1 | . . . . . . . . . . . 1 . . . . . . . Build 1 | . . . . . . . . . . . 1 . . . . . . . Repair Station Hacks 14 | . 4 . 3 . . 6 . . . . . 1 . . . . . . Scan Component 8 | . 2 . 2 . . 3 . . . . . 1 . . . . . . Repair 6 | . 2 . 1 . . 3 . . . . . . . . . . . . Recycling Unit Hacks 10 | . 1 . . . . 2 1 . . . 1 . . . . 5 . . Retrieve Components 10 | . 1 . . . . 2 1 . . . 1 . . . . 5 . . Scanalyzer 8 | . . . 4 . . . . . . . . . . . . 4 . . Insert Component 3 | . . . 2 . . . . . . . . . . . . 1 . . Analyze 5 | . . . 2 . . . . . . . . . . . . 3 . . Garrison Access Hacks 4 | . . . . . . 1 . . . . 1 . . . . 2 . . Seal Access 4 | . . . . . . 1 . . . . 1 . . . . 2 . . Unauthorized Hacks 31 | . 7 . 7 . . 2 6 . . . 1 3 . . 1 4 . . Terminals 21 | . 5 . 7 . . 2 2 . . . . 3 . . 1 1 . . Track 5 | . . . 2 . . 2 . . . . . 1 . . . . . . Botnet 3 | . . . 2 . . . . . . . . 1 . . . . . . Operators 3 | . . . 1 . . . . . . . . 1 . . . 1 . . Skim 9 | . 5 . 2 . . . 2 . . . . . . . . . . . Sabotage 1 | . . . . . . . . . . . . . . . 1 . . . Fabricators 1 | . . . . . . . . . . . 1 . . . . . . . Prioritize 1 | . . . . . . . . . . . 1 . . . . . . . Repair Stations 1 | . . . . . . . . . . . . . . . . 1 . . Patch 1 | . . . . . . . . . . . . . . . . 1 . . Recycling Units 7 | . 2 . . . . . 4 . . . . . . . . 1 . . Recyclers 2 | . . . . . . . 1 . . . . . . . . 1 . . Tunnel 5 | . 2 . . . . . 3 . . . . . . . . . . . Scanalyzers 1 | . . . . . . . . . . . . . . . . 1 . . Extract 1 | . . . . . . . . . . . . . . . . 1 . . Garrison Access . | . . . . . . . . . . . . . . . . . . . Data Cores Recovered . | . . . . . . . . . . . . . . . . . . . Used . | . . . . . . . . . . . . . . . . . . . Hacking Detections 64 | . 8 . 14 . . 12 4 . 1 . 2 15 . . 3 5 . . Full Trace Events 4 | . . . . . . 2 . . . . 1 . . . 1 . . . Feedback Events . | . . . . . . . . . . . . . . . . . . . Feedback Blocked . | . . . . . . . . . . . . . . . . . . . Robot Schematics Acquired . | . . . . . . . . . . . . . . . . . . . Robots Built . | . . . . . . . . . . . . . . . . . . . Authchips . | . . . . . . . . . . . . . . . . . . . Time . | . . . . . . . . . . . . . . . . . . . Total Robot Build Rating . | . . . . . . . . . . . . . . . . . . . Part Schematics Acquired 29 | . . . . . . . . . 1 . . 3 . . 1 24 . . Parts Built 1 | . . . . . . . . . . . 1 . . . . . . . Authchips . | . . . . . . . . . . . . . . . . . . . Time 33 | . . . . . . . . . . . 33 . . . . . . . Total Part Build Rating 4 | . . . . . . . . . . . 4 . . . . . . . Parts Repaired 6 | . 2 . 1 . . 3 . . . . . . . . . . . . Time 198 | . 52 . 26 . . 120 . . . . . . . . . . . . Parts Recycled . | . . . . . . . . . . . . . . . . . . . Recycled Matter . | . . . . . . . . . . . . . . . . . . . Retrieved Matter . | . . . . . . . . . . . . . . . . . . . Retrieved Components 23 | . . . . . . 17 3 . . . . . . . . 3 . . Parts Scanalyzed 2 | . . . 1 . . . . . . . . . . . . 1 . . Part Schematics Acquired 1 | . . . . . . . . . . . . . . . . 1 . . Parts Damaged . | . . . . . . . . . . . . . . . . . . . Bothacking | -11 -10 -10 -9 -9 -8 -8 -8 -8 -6 -6 -6 -6 -6 -6 -6 -5 -5 -5 ------------ Run | Yrd Mat Min Mat Min Mat Sto Rec Scr Fac Was Fac Ext Cet Arc Hub Fac Upp Upp Used RIF Installer . | . . . . . . . . . . . . . . . . . . . Robots Hacked 1 | . . . . . . . . . . . . . . . . 1 . . Non-combat 1 | . . . . . . . . . . . . . . . . 1 . . Combat . | . . . . . . . . . . . . . . . . . . . Robot Hacks Applied 2 | . . . . . . . . . . . . . . . . 2 . . parse_system 1 | . . . . . . . . . . . . . . . . 1 . . find_fabricator 1 | . . . . . . . . . . . . . . . . 1 . . Relay Couplers Released 2 | . . . . . . . . . . . . . . . . 2 . . Machine Destruction 2 | . . . . . . . . . . . . . . . . 2 . . Fabnet Peak Effective % . | . . . . . . . . . . . . . . . . . . . Robots Rewired 22 | . . . . . . . 5 . . . . 17 . . . . . . Allies Hacked . | . . . . . . . . . . . . . . . . . . . Hacks Repelled . | . . . . . . . . . . . . . . . . . . . Allies | -11 -10 -10 -9 -9 -8 -8 -8 -8 -6 -6 -6 -6 -6 -6 -6 -5 -5 -5 -------- Run | Yrd Mat Min Mat Min Mat Sto Rec Scr Fac Was Fac Ext Cet Arc Hub Fac Upp Upp Total Allies 46 | . . . . . . 10 5 1 . . . 25 5 . . . . . Largest Group 15 | . . . . . . 10 14 15 . . . 11 9 7 6 . . . Highest-Rated Group 706 | . . . . . . 173 239 292 . . . 373 706 558 462 . . . Highest-Rated Ally 159 | . . . . . . 29 29 53 . . . 159 159 96 96 . . . Total Orders 9 | . . . . . . . . . . . . . 8 . 1 . . . STAY 5 | . . . . . . . . . . . . . 4 . 1 . . . FOLLOW 4 | . . . . . . . . . . . . . 4 . . . . . Ally Attacks 484 | . . . . . . 23 9 156 . . . 175 53 27 41 . . . Total Damage 8918 | . . . . . . 252 118 2062 . . . 3339 1352 662 1133 . . . Kills 73 | . . . . . . 3 2 16 . . . 30 8 5 9 . . . Allies Corrupted 3 | . . . . . . . . . . . . 1 . . 2 . . . Allies Melted 1 | . . . . . . . . 1 . . . . . . . . . . Intel | -11 -10 -10 -9 -9 -8 -8 -8 -8 -6 -6 -6 -6 -6 -6 -6 -5 -5 -5 ------- Run | Yrd Mat Min Mat Min Mat Sto Rec Scr Fac Was Fac Ext Cet Arc Hub Fac Upp Upp Active Infowar (turns) 1431 | . . 84 283 . 1 608 . . 123 . 2 118 . . . 212 . . Optics 118 | . . . . . . . . . . . . 118 . . . . . . Sensors 36 | . . . . . . . . . 34 . 2 . . . . . . . Seismic 1301 | . . 84 283 . 1 608 . . 113 . . . . . . 212 . . Robot Analysis Total 3 | . 1 . 2 . . . . . . . . . . . . . . . Derelict Logs Recovered 2 | . . 1 . 1 . . . . . . . . . . . . . . Drone Launches . | . . . . . . . . . . . . . . . . . . . Drone Recoveries . | . . . . . . . . . . . . . . . . . . . Exploration | -11 -10 -10 -9 -9 -8 -8 -8 -8 -6 -6 -6 -6 -6 -6 -6 -5 -5 -5 ------------- Run | Yrd Mat Min Mat Min Mat Sto Rec Scr Fac Was Fac Ext Cet Arc Hub Fac Upp Upp Turns Passed 22505 | 3 2450 849 3568 1531 95 3576 838 5042 203 91 152 1585 714 726 160 714 76 132 Spaces Moved 13224 | 3 950 558 1296 598 37 918 311 2968 161 156 274 1476 362 511 359 1796 227 263 Core 1800 | . . . . . . . . . 9 156 274 1096 1 . . . 1 263 Treads 5449 | . 678 . 1296 598 37 918 311 966 . . . 38 325 282 . . . . Legs 74 | 3 71 . . . . . . . . . . . . . . . . . Wheels 3098 | . 201 558 . . . . . 1914 47 . . 342 36 . . . . . Hover . | . . . . . . . . . . . . . . . . . . . Flight 2803 | . . . . . . . . 88 105 . . . . 229 359 1796 226 . Fastest Speed 25 | 120 120 135 240 240 240 240 240 90 32 50 50 50 105 35 34 25 32 50 Average Speed 140 | 120 226 135 240 240 240 240 240 156 75 51 50 72 156 103 34 30 33 50 Slowest Speed 1230 | 120 320 135 240 240 240 240 240 1230 200 100 50 250 800 160 35 107 50 50 Overloaded Moves . | . . . . . . . . . . . . . . . . . . . Propulsion Burnouts . | . . . . . . . . . . . . . . . . . . . Robots Hopped 61 | . . . . . . . . . 6 . . . 24 . 8 21 2 . Potential Cave-ins . | . . . . . . . . . . . . . . . . . . . Cave-ins Triggered . | . . . . . . . . . . . . . . . . . . . Exploration Rate (%) 59 | 2 98 91 97 98 7 94 45 89 8 84 8 86 67 98 37 37 41 47 Regions Visited 18 Branch Regions 11 Pre-discovered Areas 8 | . 4 . . . . 1 3 . . . . . . . . . . . Known Exits Taken 9 | . . . 1 1 1 1 . . . . 1 1 1 . 1 1 . . Unknown Exits Taken 7 | 1 1 1 . . . . 1 1 . . . . . 1 . . 1 . Scrap Searched 6 | . . 1 . 2 . . . 2 . . . . . . . . . 1 Spaces Dug 72 | . 6 10 9 26 . 3 . . 18 . . . . . . . . . Terrain Destroyed 408 | . 6 55 87 158 . 6 . . 30 . . 6 10 10 . 40 . . Melee 7 | . . . . . . 3 . . 4 . . . . . . . . . Projectile 39 | . . 1 4 2 . 3 . . . . . 6 10 10 . 3 . . AOE 362 | . 6 54 83 156 . . . . 26 . . . . . . 37 . . Terrain Rammed . | . . . . . . . . . . . . . . . . . . . Walls Destroyed . | . . . . . . . . . . . . . . . . . . . Machines Disabled . | . . . . . . . . . . . . . . . . . . . Actions | -11 -10 -10 -9 -9 -8 -8 -8 -8 -6 -6 -6 -6 -6 -6 -6 -5 -5 -5 --------- Run | Yrd Mat Min Mat Min Mat Sto Rec Scr Fac Was Fac Ext Cet Arc Hub Fac Upp Upp Total 16260 | 2 1146 630 1594 650 40 2102 402 3333 217 166 284 1863 425 664 387 1868 224 263 Wait 1942 | . 84 39 114 5 . 1034 49 221 . 7 . 226 26 101 30 6 . . Move 13099 | 2 949 557 1295 597 36 917 310 2968 151 155 273 1475 319 510 345 1755 222 263 Hop 48 | . . . . . . . . . 4 . . . 18 . 5 19 2 . Pick Up 122 | . 26 7 27 3 . 15 1 32 2 . 1 . 4 . 1 3 . . Fast Attach 93 | . 2 . 5 . . 3 . 7 2 2 3 13 9 17 4 26 . . Attach 48 | . 3 . 3 2 2 5 . 6 10 . . 3 1 2 . 11 . . Detach 34 | . 1 . 2 . . . . 3 3 1 1 4 . 7 . 12 . . Swap 81 | . 15 3 22 6 . 17 1 8 2 . . 2 2 2 . 1 . . Drop 138 | . 8 7 27 2 . 7 1 50 9 1 2 2 8 8 2 4 . . Fire 438 | . 54 17 81 33 2 92 . 38 16 . . 22 37 17 . 29 . . Melee 56 | . . . . . . 4 . . 5 . 2 43 . . . 2 . . Ram 3 | . . . . . . . . . . . 2 1 . . . . . . Kick . | . . . . . . . . . . . . . . . . . . . Crush 34 | . 4 . 18 2 . 8 1 . . . . . 1 . . . . . Escape Stasis 25 | . . . . . . . . . 13 . . 12 . . . . . . Rewire 99 | . . . . . . . 39 . . . . 60 . . . . . . Trap . | . . . . . . . . . . . . . . . . . . . Miscellaneous . | . . . . . . . . . . . . . . . . . . . Route ------- -11/Scrapyard -10/Materials (discovered 6 exits: *Mat x3 / *Min x2 / Sub) -10/Mines (discovered 2 exits: *Mat x2) -9/Materials (discovered 4 exits: *Mat x3 / *Min) -9/Mines (discovered 2 exits: *Mat x2) -8/Materials (discovered 2 exits: *Sto x2) -8/Storage (discovered 2 exits: [*Fac] / *Rec) -8/Recycling -8/Scraptown (discovered 2 exits: *Fac x2) -6/Factory (discovered 4 exits: Low x2 / Ext x2) -6/Waste -6/Factory (discovered 2 exits: *Fac / *Ext) -6/Extension (discovered 2 exits: *Fac / *Cet) -6/Cetus (discovered 2 exits: *Fac / *Arc) -6/Archives (discovered 3 exits: *Fac / *Hub x2) -6/Hub_04(d) (discovered 2 exits: *Fac x2) -5/Factory (discovered 2 exits: *Upp x2) -5/Upper Caves -5/Upper Caves History --------- Turn | Location | Event 1 | -11/Scrapyard | Discovered new exit (range 1) 4 | -11/Scrapyard | Entered Materials 309 | -10/Materials | Build established: Mutant 1017 | -10/Materials | Discovered new exit (range 5) 1054 | -10/Materials | Discovered new exit (range 16) 1211 | -10/Materials | Repaired Lgt. Armor Plating 1238 | -10/Materials | Repaired Lgt. Treads 1635 | -10/Materials | Discovered new exit (range 4) 1721 | -10/Materials | Discovered new exit (range 14) 1786 | -10/Materials | Discovered new exit (range 5) 2223 | -10/Materials | Identified exit to Subcaves 2223 | -10/Materials | Learned location of 1 exit from Materials 2275 | -10/Materials | Learned location of Storage (-8) 2317 | -10/Materials | Learned 2 Storage zone layouts 2375 | -10/Materials | Learned location of Subcaves (-10) 2454 | -10/Materials | Entered Mines 2526 | -10/Mines | Met a Derelict testing a Signal Generator 2541 | -10/Mines | Found Signal Generator 2562 | -10/Mines | Deemed a non-threat by the Exiles lab entrance 2763 | -10/Mines | Found a damaged Exp. Sensor Array with a note attached 2768 | -10/Mines | Found Prototype Device 2941 | -10/Mines | Learned location of 2 exits from Materials 3010 | -10/Mines | Discovered new exit (range 8) 3096 | -10/Mines | A weapon hastily lodged in a ceiling crevice suddenly fell to the ground 3162 | -10/Mines | Discovered new exit (range 6) 3218 | -10/Mines | Found the Drone Emporium 3223 | -10/Mines | Found Prototype Device 3303 | -10/Mines | Entered Materials 3303 | -9/Materials | Evolved 2 slots: Propulsion x1, Utility x1 3304 | -9/Materials | Identified exit to Mines 3305 | -9/Materials | Identified exit to Materials 3480 | -9/Materials | Identified Decoy Drone Bay 4025 | -9/Materials | Repaired Lgt. Armor Plating 5342 | -9/Materials | Central database locked down 5456 | -9/Materials | Identified Exp. Sensor Array 6871 | -9/Materials | Entered Mines 6889 | -9/Mines | Met a Derelict bent on vengeance 7014 | -9/Mines | Learned location of 1 exit from Proximity Caves 7041 | -9/Mines | Discovered exit to Materials (range 7) 7203 | -9/Mines | Assembled infested the area 7338 | -9/Mines | Discovered exit to Materials (range 10) 7455 | -9/Mines | Destroyed 9 combat bots 7814 | -9/Mines | Met a Derelict who couldn't figure out how to use a Trap Extractor 8402 | -9/Mines | Entered Materials 8402 | -8/Materials | Evolved 2 slots: Propulsion x1, Utility x1 8402 | -8/Materials | Discovered new exit (range 13) 8403 | -8/Materials | Identified exit to Storage 8497 | -8/Materials | Entered Storage 8498 | -8/Storage | Identified exit to Recycling 8672 | -8/Storage | Garrison activated, responded to threat 8773 | -8/Storage | Garrison activated, responded to threat 9236 | -8/Storage | Repaired Imp. Light Armor Plating 10247 | -8/Storage | Assisted by bots powering up and referring to "LRC-V3" 10363 | -8/Storage | Repaired Med. Treads 10402 | -8/Storage | Repaired Hrd. Medium Armor Plating 10436 | -8/Storage | Learned location of Armory (-4) 10581 | -8/Storage | Build established: Commander-Mutant 10645 | -8/Storage | Discovered new exit (range 15) 11058 | -8/Storage | Used back door to open Recycling access 12073 | -8/Storage | Entered Recycling 12073 | -8/Recycling | Accompanied by 10 allies 12703 | -8/Recycling | Scanned before Scraplab entrance 12835 | -8/Recycling | Entered Scraplab 12855 | -8/Recycling | Discovered new exit (range 3) 12911 | -8/Recycling | Entered Scraptown 12911 | -8/Scraptown | Accompanied by 14 allies 13243 | -8/Scraptown | Discovered new exit (range 13) 13511 | -8/Scraptown | Visited SPCMW 13583 | -8/Scraptown | Visited Spacefarers 13595 | -8/Scraptown | Heard Great Nut preacher, LISTEN AND RECITE! 13934 | -8/Scraptown | Visited UFD Registry 13953 | -8/Scraptown | Visited Awakened 14001 | -8/Scraptown | Visited Cyclists 14054 | -8/Scraptown | Visited Shadow of the Wyrm 14133 | -8/Scraptown | Visited The Evicted 14167 | -8/Scraptown | Visited Symbiants 14207 | -8/Scraptown | Registered with UFD as "Electroranger" 14301 | -8/Scraptown | Visited Scrap Suit Storage 14335 | -8/Scraptown | Visited Curators Association 14651 | -8/Scraptown | Visited Scrapoid Pod Storage 14687 | -8/Scraptown | Visited Junk Repository 14745 | -8/Scraptown | Visited Chapter 10 14810 | -8/Scraptown | Visited Botcube Research 14863 | -8/Scraptown | Visited LU-1G1's Boring Crew 14966 | -8/Scraptown | Visited Science Guys 15637 | -8/Scraptown | Discovered new exit (range 5) 15812 | -8/Scraptown | Entered Cyclist Reading Room 16821 | -8/Scraptown | Found Botcube 17371 | -8/Scraptown | Botcube activated 17393 | -8/Scraptown | Botcube completed mutation into treaded form, armed with 1 gun. 17591 | -8/Scraptown | Met Optimus 17591 | -8/Scraptown | Accepted into 0bPrime 17786 | -8/Scraptown | Civil war broke out across Scraptown 17838 | -8/Scraptown | Attacked by Scraptown defenders 17845 | -8/Scraptown | Lost 5 allies 17903 | -8/Scraptown | Optimus destroyed in the chaos of civil war 17903 | -8/Scraptown | Destroyed Optimus 17905 | -8/Scraptown | Lost 10 allies 17919 | -8/Scraptown | Core integrity fell below 50% 17953 | -8/Scraptown | Entered Factory 17953 | -6/Factory | Evolved 4 slots: Propulsion x1, Utility x2, Weapon x1 18033 | -6/Factory | Lost 3 parts (1n1u1w) 18078 | -6/Factory | Identified exit to Lower Caves 18078 | -6/Factory | Identified exit to Extension 18156 | -6/Factory | Sucked down chute 18156 | -6/Factory | Entered Waste 18171 | -6/Waste | EMP discharged 18171 | -6/Waste | Spotted C-40 Crusher 18186 | -6/Waste | Lost 4 parts (2n1u1w) 18187 | -6/Waste | Build established: Hacker-Mutant 18192 | -6/Waste | Spotted C-40 Crusher 18193 | -6/Waste | Spotted C-40 Crusher 18194 | -6/Waste | Spotted C-40 Crusher 18208 | -6/Waste | Spotted C-40 Crusher 18209 | -6/Waste | Spotted C-40 Crusher 18242 | -6/Waste | Discovered new exit (range 11) 18247 | -6/Waste | Identified exit to Factory 18247 | -6/Waste | Entered Factory 18283 | -6/Factory | Discovered new exit (range 6) 18285 | -6/Factory | Identified exit to Factory 18341 | -6/Factory | Fabricated Cld. VTOL Module (x1) 18391 | -6/Factory | Discovered exit to Extension (range 16) 18399 | -6/Factory | Entered Extension 18410 | -6/Extension | Lost 3 parts (2n1u) 18534 | -6/Extension | Core integrity fell below 50% 18560 | -6/Extension | Lost 3 allies 18571 | -6/Extension | Rescued a captive Derelict 18588 | -6/Extension | Rescued a captive Derelict 18686 | -6/Extension | Rescued a captive Derelict 18688 | -6/Extension | Rescued a captive Derelict 18698 | -6/Extension | Rescued a captive Derelict 18698 | -6/Extension | Rescued a captive Derelict 18909 | -6/Extension | Rescued a captive Derelict 19337 | -6/Extension | Spotted B-75 Beast 19348 | -6/Extension | Build established: Commander-Mutant 19367 | -6/Extension | Spotted B-75 Beast 19369 | -6/Extension | Allies destroyed B-75 Beast 19375 | -6/Extension | Allies destroyed B-75 Beast 19497 | -6/Extension | Lost 3 allies 19564 | -6/Extension | Rescued A7 19667 | -6/Extension | Build established: Scavenger-Gunner 19677 | -6/Extension | Lost 4 allies 19918 | -6/Extension | Central database locked down 19938 | -6/Extension | Discovered exit to Factory (range 10) 19939 | -6/Extension | Discovered new exit (range 6) 19953 | -6/Extension | Identified exit to Cetus 19984 | -6/Extension | Disrupted transfer network 19984 | -6/Extension | Entered Cetus 19984 | -6/Cetus | Accompanied by 7 allies (A7) 19989 | -6/Cetus | Acquired a Cetus Manufacturing Module code from A7 20012 | -6/Cetus | Spotted Cetus Guard 20012 | -6/Cetus | Spotted Cetus Guard 20015 | -6/Cetus | Spotted Cetus Guard 20015 | -6/Cetus | Spotted Cetus Guard 20030 | -6/Cetus | Destroyed Cetus Guard 20034 | -6/Cetus | Allies destroyed Cetus Guard 20048 | -6/Cetus | Destroyed Cetus Guard 20051 | -6/Cetus | Allies destroyed Cetus Guard 20093 | -6/Cetus | System corruption reached 10% 20156 | -6/Cetus | Started Cetus Manufacturing Module 20167 | -6/Cetus | Escorted A7 to Cetus Mainframe 20181 | -6/Cetus | Manufactured an Enhanced Grunt 20201 | -6/Cetus | Discovered new exit (range 16) 20206 | -6/Cetus | Manufactured an Enhanced Grunt 20231 | -6/Cetus | Manufactured an Enhanced Grunt 20234 | -6/Cetus | Spotted Cetus Guard 20235 | -6/Cetus | Spotted Cetus Guard 20238 | -6/Cetus | Spotted Cetus Guard 20241 | -6/Cetus | Spotted Cetus Guard 20250 | -6/Cetus | Destroyed Cetus Guard 20256 | -6/Cetus | Manufactured an Enhanced Grunt 20259 | -6/Cetus | Allies destroyed Cetus Guard 20264 | -6/Cetus | Allies destroyed Cetus Guard 20264 | -6/Cetus | Allies destroyed Cetus Guard 20278 | -6/Cetus | Discovered exit to Factory (range 16) 20281 | -6/Cetus | Manufactured an Enhanced Grunt 20290 | -6/Cetus | Met Revision 17 20297 | -6/Cetus | Murdered Revision 17 20526 | -6/Cetus | Identified exit to Archives 20578 | -6/Cetus | Build established: Scavenger-Tank 20635 | -6/Cetus | Murdered A7 20638 | -6/Cetus | Extracted ID and sensor layout for unrecognized location from A7's data core 20698 | -6/Cetus | Entered Archives 20698 | -6/Archives | Accompanied by 7 allies 20790 | -6/Archives | Discovered exit to Factory (range 15) 20842 | -6/Archives | Discovered new exit (range 14) 21161 | -6/Archives | Discovered new exit (range 16) 21424 | -6/Archives | Entered Hub_04(d) 21424 | -6/Hub_04(d) | Accompanied by 6 allies 21459 | -6/Hub_04(d) | Discovered exit to Factory (range 13) 21492 | -6/Hub_04(d) | Discovered exit to Factory (range 9) 21508 | -6/Hub_04(d) | Build established: Wizard-Mutant 21576 | -6/Hub_04(d) | Network Hub disabled 21581 | -6/Hub_04(d) | Spotted Lightning 21582 | -6/Hub_04(d) | Spotted Lightning 21582 | -6/Hub_04(d) | Spotted Lightning 21584 | -6/Hub_04(d) | Entered Factory 21584 | -5/Factory | Evolved 2 slots: Utility x1, Weapon x1 21613 | -5/Factory | Lost 5 allies 21676 | -5/Factory | Identified exit to Upper Caves 21727 | -5/Factory | Lost 6 parts (4n1u1w) 22184 | -5/Factory | First assault squad dispatched 22198 | -5/Factory | Destroyed 7 combat bots 22203 | -5/Factory | Core integrity fell below 50% 22236 | -5/Factory | Lost 10 parts (1p3n4u2w) 22298 | -5/Factory | Entered Upper Caves 22331 | -5/Upper Caves | Ambushed by wild Derelicts 22341 | -5/Upper Caves | Encountered a Warlord checkpoint 22371 | -5/Upper Caves | Discovered new exit (range 9) 22374 | -5/Upper Caves | Entered another Upper Caves area 22475 | -5/Upper Caves | Core integrity fell below 20% 22500 | -5/Upper Caves | Attracted the attention of an 0b10 checkpoint 22506 | -5/Upper Caves | Destroyed by S-27 Virus with Autogun Last Messages --------------- 22374_ Imp. Hacking Suite destroyed. LOCATION=UNKNOWN GOAL=ESCAPE 22384_ |X,HWACIUXSZDPFY8YGK2I7U X 22387_ Searching scrap... 22387_ Found Enh. Gauss Cannon. 22387_ Found 61 Matter. 22388_ Acquired 61 matter. 22410_ OGCT=ZOQJSLNP,H>QR/&HUY7 22418_ N8-UNC(k) breaks down the debris. 22423_ 0A-NQB(k) breaks down the debris. 22426_ System corrupted: Component data lost. 22434_ WF-LLU(k) breaks down the debris. 22446_ 8XJYAK&Y,XVEVTABM#RLU 8JTXIERIBW&5 XW9 22468_ 3F-WJD(S) destroyed. 22476_ Imp. System Shield destroyed. 22478_ Imp. Hacking Suite destroyed. 22499_ Penetrated by Slug. 22500_ Y-64 Sentinel: "INTERCEPTING UNREGISTERED DERELICT." 22502_ Slug penetrates Wall. Map ----- +----------------------------------------------------+ | ?????????????????????????????????????# ##???????? | | ?????????????????????????????????????# ##????????? | | ?????????????????????????????????????###?????????? | | ?????????????????????????????????????????????????? | | ?????????????????????????????????????????????????? | | ?????????????????????????????????????????????????? | | ??????????????????????????????????????????????#### | | ??????????????????????????????????????????????# | | ??????????????????????????????????????????????# ## | | ??????????????????????????????????????????????# #? | | ??????????????????????????????????????????????# #? | | ??????????????????????????????????????????????# #? | | ??????????????????????????????????????????????# #? | | ??????????????????????????????????????????????# | | ??????????????????????????????????????????????# | | ??????????????????????????????????????????????# | | ??????????????????????????????????????????????# | | ??????????????????????????????????????????????#### | | ?????????????????????????????????????????????????? | | ?????????????????????????????????????##??????????? | | ???????????????????????##????????##### #?????????? | | ??????????????????????## ???????## ?????????? | | ?????????????????????## ##?????# #????????? | | ?????????????????????# ##????# ????????? | | ?????????????????????# ##????# ##??????? | | ????????????????????## @ ##????# ##?????? | | ????????????????????# ##???# #####?# | | ????????????????????# ##??# ### | | ????????????????????# #??# | | ????????????????????# #; #????# | | ????????????????????# #### s############ ## | | ????????????????????# ##### s #???## # | | ????????????????????### #??## # | | ?????????????????????# #### ### # | | ????????????????????# ## ##?## | | ???????????????????# #???? | | ??????????????????# # #???? | | ????????????????? ## ###????## | | ???????????????? #?#### ####???????? | | ????????????????? #?????# ##??????????? | | ????????????????? ?????# ###???????????? | | ?????????????????? ######?????## #?????????????? | | ???????????????????????????????## ?????????????? | | ????????????????????????????????# ?????????????? | | ???????????????????????????????? ????????????? | | ???????????????????????????????## %=????????????? | | ????????????????????????????????####%????????????? | | ?????????????????????????????????????????????????? | | ?????????????????????????????????????????????????? | | ?????????????????????????????????????????????????? | +----------------------------------------------------+ Best States ------------- Heat Dissipation 75 Coolant Potential 65 Energy Generation 29 Energy Capacity 340 Matter Stores 345 Matter Capacity 400 Sight Range 18 Robot Scan Range 20 Terrain Scan Density 10 Corruption Containment 8 Armor Coverage 675 Evasion (%) 65 Targeting Accuracy 8 Melee Accuracy 6 Recoil Reduction 6 Offensive Hacking 62 Defensive Hacking 22 Item Schematics ----------------- Cld. VTOL Module | -6/Factory | Hacked Weapon Mount | -6/Extension | Hacked Hvy. Shock Bomb Launcher | -6/Extension | Hacked Drone Bay | -6/Extension | Hacked Adv. Hacking Suite | -6/Hub_04(d) | Hacked Helical Railgun | -5/Factory | Scanalyzed Exp. Targeting Computer | -5/Factory | Hacked Cld. Nuclear Pulse Thruster | -5/Factory | Hacked Exp. Hacking Suite | -5/Factory | Hacked Datajack | -5/Factory | Extracted Terrain Scan Processor | -5/Factory | Extracted Adv. Terrain Scanner | -5/Factory | Extracted Imp. Hardlight Generator | -5/Factory | Extracted Jamming Amplifier | -5/Factory | Extracted Adv. Shield Generator | -5/Factory | Extracted Shield Generator | -5/Factory | Extracted Sml. Battery | -5/Factory | Extracted Imp. Weapon Shielding | -5/Factory | Extracted IFF Parser | -5/Factory | Extracted Actuator Array | -5/Factory | Extracted Arm. Leg | -5/Factory | Extracted Med. Storage Unit | -5/Factory | Extracted Lrn. Missile Launcher | -5/Factory | Extracted Hpw. Tractor Beam | -5/Factory | Extracted Med. Reflective Plating | -5/Factory | Extracted Gyrokinetic Inverter | -5/Factory | Extracted Imp. Terrain Scanner | -5/Factory | Extracted Plasma Rifle | -5/Factory | Extracted Lgt. Armored Exoskeleton | -5/Factory | Extracted Robot Schematics ------------------ None Fabricated ------------ Cld. VTOL Module | x1 | -6/Factory Repaired ---------- Lgt. Armor Plating | 20% | -10/Materials Lgt. Treads | 56% | -10/Materials Lgt. Armor Plating | 2% | -9/Materials Imp. Light Armor Plating | 26% | -8/Storage Med. Treads | 15% | -8/Storage Hrd. Medium Armor Plating | 71% | -8/Storage Alien Tech Used ----------------- None Achievements -------------- None Challenges ------------ None Game ------ Seed PlexusArmorCrosscalibrator Manual? 0 Play Time 02:38:29 Cumulative 498.8 hours Start 2025.06.30 @ 20:27:38 End 2025.07.05 @ 20:40:18 Sessions 6 Manual Loads 0 Difficulty Rogue Special Mode None Game No. 221 Rogue 221 Adventurer 0 Explorer 0 Win Type - Total 23 Types 7/4/6/2/1/0/1/1/0/1 Lore% 89 Gallery% 85 Achievement% 80 Wizard Run 0 Options --------- Layout 0 ASCII 0 Keyboard 0 Movement Arrows Keybinds 0 Fullscreen 2 Font 18/SmallcapsGlow Map View 76x50 Zoom Use 0% Tactical HUD 1 Map Filters NONE Filters NONE Steam 1 RUN: e9145fb5-c627-492f-ae91-23a750aa60eb